bitfinex/quotes_ETHUSD_20240614
["timestamp","ask_amount","ask_price","bid_price","bid_amount"]
[1718325560404,2.44575686,3464.7,3463.4,2.65502429]
[1718325561293,2.036,3464.6,3463.4,2.4026]
[1718325562320,2.036,3464.6,3463.3,0.1216429]
[1718325562321,2.2595,3464.4,3463.3,0.1216429]
[1718325563496,2.2595,3464.4,3463.4,0.19272179]
[1718325564178,2.2595,3464.4,3463.3,0.1216429]
[1718325564439,2.2595,3464.4,3463.5,0.19272584]
[1718325564718,2.2595,3464.4,3463.4,0.19275756]
[1718325564869,2.2595,3464.4,3463.6,0.19269412]
[1718325565071,2.2595,3464.4,3463.5,0.19272584]
[1718325565478,2.2595,3464.4,3463.3,0.1216429]
[1718325565680,0.52595,3464.3,3463.6,0.19263791]
[1718325565885,3.52595,3464.3,3463.4,0.19270135]
[1718325566099,3.52595,3464.3,3463.3,0.1216429]
[1718325566475,3.52595,3464.3,3463.4,0.05774304]
[1718325566701,3.0,3464.3,3463.4,0.05774304]
[1718325566879,2.2595,3464.4,3463.4,0.05774304]
[1718325568076,2.2595,3464.4,3463.3,0.1216429]
[1718325568277,2.2595,3464.4,3463.4,0.05774038]
[1718325568510,2.2595,3464.4,3463.4,0.25046217]
[1718325568681,2.2595,3464.4,3463.4,0.05774038]
[1718325569226,3.0,3464.6,3463.4,1.49118552]
[1718325569425,9.7259,3464.8,3463.4,1.49118552]
[1718325569426,3.0,3464.7,3463.5,0.16128284]
[1718325569716,3.0,3464.7,3463.6,0.05773455]
[1718325569917,3.0,3464.7,3463.5,0.35397291]
[1718325570092,3.0,3464.7,3463.7,0.19262663]
[1718325570295,3.0,3464.7,3463.6,0.19265835]
[1718325570494,3.0,3464.7,3463.8,0.19259492]
[1718325570811,7.45,3465.1,3463.9,2.036]
[1718325571007,7.45,3465.1,3464.0,2.2956]
[1718325571501,7.45,3465.1,3464.1,0.19218299]
[1718325571827,0.98369,3465.1,3464.1,0.19218299]
[1718325571984,2.3869,3465.3,3464.2,0.05772711]
[1718325572184,2.3869,3465.3,3464.2,0.24983752]
[1718325572381,2.3869,3465.3,3464.2,1.62555555]
[1718325572588,7.45,3465.5,3464.3,3.52716672]
[1718325572793,7.45,3465.5,3464.5,2.3064]
[1718325573002,7.45,3465.5,3464.6,0.05771876]
[1718325573208,7.45,3465.5,3464.6,0.24951336]
[1718325573811,7.45,3465.9,3464.7,3.46944514]
[1718325574022,7.45,3466.3,3464.8,0.05771306]
[1718325574224,1.983,3466.2,3464.9,1.80533725]
[1718325574436,7.45,3466.3,3465.1,2.036]
[1718325574637,7.45,3466.3,3465.2,0.0577039]
[1718325574808,7.45,3466.3,3465.2,0.19133883]
[1718325575509,7.45,3466.3,3465.3,2.3322]
[1718325575840,7.45,3466.3,3465.4,0.19102526]
[1718325576000,2.3389,3466.7,3465.4,0.5866923]
[1718325576001,9.7889,3466.7,3465.4,0.5866923]
[1718325576203,9.7889,3466.7,3465.4,0.39566704]
[1718325576815,3.0,3466.6,3465.4,0.39566704]
[1718325578498,3.0,3466.6,3465.5,0.19085574]
[1718325578704,3.0,3466.9,3465.6,2.036]
[1718325578898,7.45,3467.0,3465.7,0.40559679]
[1718325579106,2.2675,3467.3,3465.7,0.59638917]
[1718325579326,3.70094514,3467.3,3465.8,2.07530821]
[1718325579716,2.2675,3467.3,3465.9,0.19072902]
[1718325580045,7.45,3467.4,3466.1,2.2664]
[1718325580347,0.745,3467.3,3466.2,2.32746855]
[1718325580648,0.745,3467.3,3466.2,2.47628314]
[1718325581255,3.745,3467.3,3466.2,2.47628314]
[1718325581456,3.0,3467.6,3466.2,2.47628314]
[1718325581599,4.43344514,3467.6,3466.2,2.47628314]
[1718325582334,4.43344514,3467.6,3466.2,0.44028314]
[1718325582743,1.43344514,3467.5,3466.2,0.190634]
[1718325582941,3.036,3467.3,3465.6,2.436]
[1718325583103,4.43344514,3467.2,3465.6,2.436]
[1718325583444,1.75541451,3467.1,3465.2,2.436]
[1718325583599,3.73614514,3467.0,3465.2,2.436]
[1718325583804,6.586,3466.9,3465.2,2.436]
[1718325584003,1.43344514,3466.8,3465.0,2.036]
[1718325584227,0.55,3466.7,3465.3,0.18945401]
[1718325584445,2.29038965,3466.6,3465.1,0.02823793]
[1718325584607,0.55,3466.5,3465.0,2.036]
[1718325584812,1.43344514,3466.4,3465.2,0.1894857]
[1718325585033,1.43344514,3466.4,3465.0,2.036]
[1718325585249,1.43344514,3466.4,3465.3,0.18945401]
[1718325585413,0.58403896,3466.3,3465.0,2.036]
[1718325585616,0.58403896,3466.3,3465.4,0.18942233]
[1718325585821,4.43344514,3466.4,3464.8,2.436]
[1718325585822,3.0,3466.4,3464.9,2.036]
[1718325586023,3.0,3466.9,3465.0,1.49115357]
[1718325586206,1.98344514,3466.8,3465.0,1.68070265]
[1718325586406,1.98344514,3466.8,3465.1,0.61527027]
[1718325586407,0.72861451,3466.7,3465.1,0.61527027]
[1718325586608,5.16205965,3466.7,3465.2,0.05770843]
[1718325586807,2.16205965,3466.7,3465.2,0.24719413]
[1718325587154,3.72861451,3466.7,3465.3,0.05770842]
[1718325587308,3.0,3466.9,3465.4,2.2521]
[1718325587508,1.43344514,3466.9,3465.5,0.05770324]
[1718325587743,4.43344514,3466.9,3465.5,0.05770324]
[1718325587946,4.43344514,3466.9,3465.6,0.18935896]
[1718325588145,3.0,3466.9,3465.7,2.036]
[1718325588451,3.0,3466.9,3465.8,0.24699352]
[1718325588656,2.4499,3467.5,3465.8,0.1892956]
[1718325588959,1.43344514,3467.4,3465.8,0.1892956]
[1718325590325,4.43344514,3467.4,3465.8,0.1892956]
[1718325590535,1.16153451,3467.3,3465.9,0.4112257]
[1718325590877,1.16153451,3467.3,3466.1,2.3407]
[1718325590878,3.0,3467.3,3466.1,2.3407]
[1718325591167,3.0,3467.3,3466.2,0.05769336]
[1718325591313,7.45,3467.7,3466.2,0.24686226]
[1718325591683,1.43344514,3467.6,3466.2,0.24686226]
[1718325591836,1.43344514,3467.6,3466.3,0.46235623]
[1718325594056,3.0,3467.8,3466.3,0.52004792]
[1718325594263,3.0,3467.8,3466.4,0.18910557]
[1718325594564,3.0,3468.0,3466.5,0.05768836]
[1718325594764,2.4562,3467.9,3466.7,2.2679]
[1718325595071,7.45,3468.1,3466.8,0.24663481]
[1718325596124,3.0,3468.0,3466.8,0.24663481]
[1718325596329,3.0,3468.0,3466.8,0.18895341]
[1718325597522,4.43344514,3468.0,3466.8,0.18895341]
[1718325598288,3.0,3468.0,3466.8,1.62239855]
[1718325598438,5.4962,3468.3,3466.9,0.38902986]
[1718325598642,1.43344514,3468.2,3466.9,0.38902986]
[1718325599263,4.43344514,3468.2,3466.9,0.38902986]
[1718325600533,0.55,3468.1,3466.7,2.2679]
[1718325600739,1.43344514,3468.0,3466.7,2.2679]
[1718325601126,3.0,3468.1,3466.8,0.05768687]
[1718325601341,0.45126726,3468.5,3466.8,0.05768687]
[1718325601578,3.32079187,3468.4,3466.9,0.23255869]
[1718325601737,3.0,3468.3,3466.9,0.23255869]
[1718325601925,4.43344514,3468.3,3466.9,0.23255869]
[1718325603162,3.0,3468.3,3466.9,1.66600383]
[1718325603366,7.45,3468.7,3467.1,2.3102]
[1718325603573,7.45,3468.7,3467.3,2.036]
[1718325603740,9.8368,3469.1,3467.4,0.05767209]
[1718325604075,1.43344514,3469.0,3467.5,2.2945]
[1718325604274,0.38202451,3468.9,3467.6,0.05767022]
[1718325604562,1.81546965,3468.9,3467.6,0.18870019]
[1718325604769,1.43344514,3468.8,3467.6,0.18870019]
[1718325608464,0.55,3468.7,3467.6,0.18870019]
[1718325608635,1.43344514,3468.6,3467.6,0.18870019]
[1718325608836,0.49834451,3468.5,3467.6,0.18870019]
[1718325609036,1.93178965,3468.5,3467.6,0.18870019]
[1718325611029,1.43344514,3468.4,3467.6,0.18870019]
[1718325611228,2.419,3468.3,3467.1,2.318]
[1718325611474,3.85244514,3468.3,3467.1,2.318]
[1718325611670,3.43507897,3468.2,3467.1,2.318]
[1718325612467,3.0,3468.2,3467.1,2.318]
[1718325612780,0.49834451,3468.5,3467.2,0.18791882]
[1718325613134,0.49834451,3468.5,3467.1,2.318]
[1718325613333,0.49834451,3468.5,3467.2,1.4911212]
[1718325613637,7.83202451,3468.9,3467.3,2.31967202]
[1718325613638,3.0,3468.8,3467.3,2.31967202]
[1718325613850,3.0,3468.8,3467.4,0.18785552]
[1718325613851,4.43344514,3468.8,3467.4,0.18785552]
[1718325614063,4.43344514,3468.8,3467.5,0.05767207]
[1718325614952,4.43344514,3468.8,3467.6,2.2954]
[1718325615138,3.0,3468.8,3467.6,2.2954]
[1718325615339,7.45,3469.2,3467.8,4.3314]
[1718325615575,1.43344514,3469.2,3467.8,4.3314]
[1718325615876,1.43344514,3469.2,3467.9,0.18752392]
[1718325616240,1.43344514,3469.2,3467.9,0.05766613]
[1718325616474,1.6266384,3469.2,3468.0,0.46186061]
[1718325617269,0.19319326,3469.2,3468.1,2.4105]
[1718325617639,0.19319326,3469.2,3468.2,0.186858]
[1718325618273,1.43344514,3469.1,3468.2,0.186858]
[1718325618949,1.43344514,3469.1,3468.1,2.4105]
[1718325619144,0.19319326,3469.2,3468.1,2.4105]
[1718325619475,0.19319326,3469.2,3468.2,0.18677645]
[1718325619948,3.49845356,3469.5,3468.3,0.02846031]
[1718325620148,3.0,3469.5,3468.4,2.2887]
[1718325620365,0.45111348,3469.6,3468.5,1.44893354]
[1718325620572,7.45,3469.9,3468.8,2.2887]
[1718325620740,7.45,3469.9,3468.9,0.05764835]
[1718325621079,7.45,3469.9,3468.9,0.68244334]
[1718325621281,7.45,3470.3,3469.0,1.43344514]
[1718325621482,7.90096988,3470.7,3469.2,2.036]
[1718325621780,7.45,3470.7,3469.2,3.46944514]
[1718325622081,7.45,3470.7,3469.3,0.18608715]
[1718325622380,2.03282685,3470.6,3469.3,0.79672038]
[1718325622875,1.43344514,3470.5,3469.3,0.79672038]
[1718325623083,1.43344514,3470.5,3469.3,0.18608715]
[1718325623382,2.3711,3470.4,3469.1,2.4508]
[1718325623539,1.43344514,3470.3,3469.1,2.4508]
[1718325623739,4.43344514,3470.3,3469.1,2.4508]
[1718325624570,0.55,3470.2,3468.1,2.036]
[1718325624772,2.47249965,3470.1,3468.3,2.357]
[1718325625076,5.47249965,3470.1,3468.4,2.60070876]
[1718325626557,4.03905451,3470.1,3468.5,3.91514514]
[1718325626758,3.0,3470.3,3468.6,2.4817]
[1718325627008,1.43344514,3470.3,3468.7,2.53934912]
[1718325627159,1.43344514,3470.3,3468.8,2.38864615]
[1718325627160,3.0,3470.3,3468.8,2.38864615]
[1718325627575,3.0,3470.5,3468.8,2.38864615]
[1718325627772,3.50835848,3470.4,3468.9,0.38220913]
[1718325627958,2.53113342,3470.6,3469.1,2.331]
[1718325627959,2.03282685,3470.6,3469.1,2.331]
[1718325628167,2.03282685,3470.6,3469.3,2.331]
[1718325628474,2.03282685,3470.6,3469.5,2.331]
[1718325628647,7.45,3471.0,3469.6,0.05763763]
[1718325628851,1.43344514,3470.9,3469.7,0.18524227]
[1718325629150,7.45,3471.0,3469.6,0.05763763]
[1718325630892,3.0,3470.9,3469.6,0.05763763]
[1718325632149,3.0,3470.9,3469.6,1.49108277]
[1718325632345,3.0,3470.9,3469.7,0.58580828]
[1718325632558,3.0,3470.9,3469.8,0.05763168]
[1718325633172,3.0,3471.2,3469.8,0.05763168]
[1718325633581,3.0,3471.2,3470.1,2.4278]
[1718325633793,7.90086415,3471.6,3470.2,0.01569319]
[1718325633959,3.79008642,3471.5,3470.3,0.44794932]
[1718325634154,3.0,3471.4,3470.3,0.46365388]
[1718325634694,3.79008642,3471.5,3470.4,0.21475176]
[1718325635076,3.0,3471.5,3470.5,2.2564]
[1718325635462,7.45,3472.0,3470.5,2.2564]
[1718325636193,7.45,3472.0,3470.6,2.4619]
[1718325636793,7.45,3472.0,3470.7,2.4619]
[1718325637094,7.45,3472.0,3470.8,0.21462195]
[1718325637388,7.45,3472.0,3470.9,0.41099671]
[1718325637554,7.45,3472.4,3471.0,0.05761407]
[1718325637753,1.43344514,3472.3,3471.0,0.27217112]
[1718325637984,1.43344514,3472.3,3471.0,0.05761407]
[1718325638183,4.43344514,3472.3,3471.1,2.4579]
[1718325638386,1.18834451,3472.2,3471.1,2.4579]
[1718325638587,4.18834451,3472.2,3471.1,2.4579]
[1718325639293,1.18834451,3472.2,3471.1,2.4579]
[1718325639502,1.18834451,3472.2,3471.2,0.27210209]
[1718325639864,1.18834451,3472.2,3471.2,0.21449216]
[1718325640181,3.0,3472.3,3471.2,0.21449216]
[1718325640182,1.16383445,3472.1,3471.2,0.21449216]
[1718325647664,3.0,3472.3,3471.2,0.21449216]
[1718325647863,3.0,3472.3,3471.1,2.4579]
[1718325648389,3.0,3472.3,3471.2,0.0547571]
[1718325649307,3.0,3472.3,3471.3,0.21282029]
[1718325649606,3.0,3472.3,3471.2,0.0547571]
[1718325649909,3.0,3472.3,3471.3,0.464086]
[1718325650269,3.0,3472.3,3471.3,0.25126571]
[1718325650793,3.0,3472.3,3471.4,2.3559]
[1718325651106,7.45,3472.4,3471.4,2.3559]
[1718325652025,7.45,3472.4,3471.5,2.4038466]
[1718325652310,7.45,3472.4,3471.6,0.26551123]
[1718325652476,3.0,3472.7,3471.6,0.31345644]
[1718325652873,3.0,3472.7,3471.6,0.26551123]
[1718325654396,3.0,3472.7,3471.7,2.2828]
[1718325656285,3.0,3472.7,3471.9,2.2828]
[1718325656507,3.0,3472.7,3472.0,0.23230081]
[1718325656674,3.0,3473.0,3472.0,0.4445277]
[1718325657075,3.0,3473.0,3472.0,0.23230081]
[1718325660914,7.45,3473.1,3472.1,2.54259477]
[1718325661092,7.94788981,3473.5,3472.1,2.54259477]
[1718325661288,1.43344514,3473.4,3472.2,2.69678895]
[1718325661489,2.2945,3473.3,3472.2,2.4851]
[1718325661682,2.60102602,3473.2,3472.2,2.4851]
[1718325662382,3.0,3473.1,3472.2,2.4851]
[1718325662582,3.0,3473.4,3472.4,2.2915]
[1718325662786,7.45,3473.5,3472.6,2.2915]
[1718325663087,7.45,3473.5,3472.7,0.2662845]
[1718325663290,7.45,3473.5,3472.8,2.2915]
[1718325663492,7.45,3473.9,3472.8,2.2915]
[1718325663701,0.8602218,3473.8,3472.8,2.2915]
[1718325664226,4.35806614,3473.8,3472.8,2.2915]
[1718325664916,3.49784434,3473.8,3472.8,2.2915]
[1718325665492,3.49782296,3473.8,3472.8,2.2915]
[1718325666079,1.43344514,3473.7,3472.8,2.2915]
[1718325666317,2.586,3473.6,3471.5,2.4858]
[1718325666517,1.43344514,3473.5,3471.7,2.4858]
[1718325666828,0.45172681,3473.4,3471.8,0.39192451]
[1718325666989,1.88517195,3473.4,3471.8,0.60336686]
[1718325667166,1.88517195,3473.4,3471.9,2.3821]
[1718325668357,1.43344514,3473.3,3471.9,2.3821]
[1718325668723,4.4366,3473.2,3471.9,2.3821]
[1718325668981,0.49782296,3473.3,3471.9,2.3821]
[1718325669143,3.49782296,3473.5,3471.9,3.81554514]
[1718325669339,3.0,3473.5,3472.1,2.424]
[1718325669572,0.49782296,3473.8,3472.2,2.48159183]
[1718325669774,1.43344514,3473.7,3472.4,2.424]
[1718325670073,0.93812681,3473.6,3472.5,0.48079109]
[1718325670662,0.49783896,3473.8,3472.5,0.48079109]
[1718325670871,7.94783896,3473.9,3472.6,2.48158591]
[1718325671072,3.0,3473.8,3472.6,2.48158591]
[1718325671566,2.972,3473.8,3472.6,2.424]
[1718325672575,1.43344514,3473.7,3472.6,2.424]
[1718325672804,1.42469451,3473.6,3472.6,2.424]
[1718325673676,4.42469451,3473.6,3472.6,2.424]
[1718325675768,3.0,3473.6,3472.6,2.424]
[1718325675951,1.43344514,3473.7,3472.6,2.424]
[1718325681055,2.036,3473.5,3472.6,2.424]
[1718325681283,1.98344514,3473.4,3472.3,2.3292]
[1718325681677,4.98344514,3473.4,3472.3,2.3292]
[1718325681991,4.98344514,3473.4,3472.4,0.23292]
[1718325683754,4.98344514,3473.4,3472.3,2.3292]
[1718325683960,2.3607,3473.3,3472.3,2.3292]
[1718325684176,1.43344514,3473.2,3472.3,2.3292]
[1718325684415,4.43344514,3473.2,3472.3,2.3292]
[1718325684775,1.43344514,3473.2,3472.3,2.3292]
[1718325684978,1.43344514,3473.2,3472.3,2.56212]
[1718325685688,4.43344514,3473.2,3472.3,2.56212]
[1718325685910,1.43344514,3473.2,3472.3,2.56212]
[1718325686473,4.43344514,3473.2,3472.3,2.56212]
[1718325686676,3.0,3473.2,3472.3,2.56212]
[1718325686892,4.80690429,3473.5,3472.4,0.256212]
[1718325687091,3.0,3473.4,3472.4,0.256212]
[1718325687266,1.80690429,3473.5,3472.4,0.256212]
[1718325687705,1.80690429,3473.4,3472.4,0.256212]
[1718325688570,1.80690429,3473.4,3472.5,2.2884]
[1718325688784,1.80690429,3473.6,3472.6,0.2544612]
[1718325690182,1.80690429,3473.5,3472.6,0.2544612]
[1718325690809,1.80690429,3473.6,3472.6,0.2544612]
[1718325691174,1.80690429,3473.5,3472.6,0.2544612]
[1718325691522,1.80690429,3473.6,3472.7,0.25428612]
[1718325691685,1.80690429,3473.6,3472.8,2.3808]
[1718325692004,4.80690429,3473.7,3472.8,2.3808]
[1718325692709,3.0,3473.7,3472.8,2.3808]
[1718325693000,2.30481333,3473.8,3472.8,2.3808]
[1718325693001,3.49790904,3473.8,3472.8,2.3808]
[1718325695212,3.49790904,3473.8,3472.9,2.34568279]
[1718325695395,3.0,3473.8,3473.0,0.23456828]
[1718325695904,3.0,3473.8,3473.1,2.3836]
[1718325697111,3.49779275,3473.8,3473.1,2.3836]
[1718325698996,3.0,3473.8,3473.1,2.3836]
[1718325699617,3.49779594,3473.8,3473.1,2.3836]
[1718325699818,3.49779594,3473.8,3473.2,0.26181683]
[1718325699978,3.0,3473.8,3473.2,0.26181683]
[1718325704632,7.45,3473.9,3473.4,2.3361]
[1718325706234,7.45,3474.3,3473.4,2.3361]
[1718325706525,3.0,3474.2,3473.5,0.25979168]
[1718325710828,3.0,3474.2,3473.4,2.3361]
[1718325710829,4.80906671,3474.2,3473.4,2.3361]
[1718325712800,5.30683501,3474.2,3473.4,2.3361]
[1718325712995,1.80906671,3474.0,3473.4,2.3361]
[1718325714135,1.80906671,3474.1,3473.4,2.3361]
[1718325714434,1.80906671,3474.0,3473.4,2.3361]
[1718325714634,1.80906671,3474.1,3473.4,2.3361]
[1718325714830,1.80906671,3474.0,3473.4,2.3361]
[1718325715434,3.08475177,3474.0,3472.1,2.3278]
[1718325715732,3.0,3473.9,3472.3,2.3278]
[1718325715938,3.0,3473.9,3472.2,1.98344514]
[1718325715939,1.80906671,3474.0,3472.5,2.3278]
[1718325716099,1.80906671,3474.0,3472.7,2.3278]
[1718325716298,1.80906671,3474.0,3472.8,1.64361764]
[1718325716638,1.80906671,3474.0,3472.9,0.39714176]
[1718325717713,1.80906671,3473.9,3472.9,0.39714176]
[1718325717914,1.80906671,3473.7,3472.7,2.3278]
[1718325718215,4.80906671,3473.7,3472.7,2.3278]
[1718325718413,1.80906671,3473.7,3472.7,2.3278]
[1718325718600,1.80906671,3473.8,3472.7,2.3278]
[1718325718799,1.80906671,3473.8,3472.8,0.23278]
[1718325719045,0.846,3473.5,3472.8,0.23278]
[1718325719399,3.0,3473.7,3472.8,0.23278]
[1718325719400,0.846,3473.6,3472.8,0.23278]
[1718325719847,0.846,3473.7,3472.9,2.2506]
[1718325720539,3.0,3473.9,3473.0,2.71294977]
[1718325720763,3.846,3474.0,3473.2,2.4588]
[1718325720919,0.846,3473.8,3473.2,2.4588]
[1718325721119,0.846,3473.8,3473.3,0.21031033]
[1718325721445,0.846,3473.8,3473.2,2.4588]
[1718325721758,0.846,3473.8,3473.3,0.21031033]
[1718325721902,0.846,3473.8,3473.3,0.30482833]
[1718325722106,0.846,3473.8,3473.4,0.21027793]
[1718325723045,3.0,3474.1,3473.4,0.21027793]
[1718325723265,5.3068506,3474.2,3473.4,0.21027793]
[1718325723433,5.30682942,3474.2,3473.3,0.30482833]
[1718325724049,3.49776271,3474.2,3473.5,2.4048]
[1718325724976,3.49773284,3474.2,3473.5,2.4048]
[1718325726365,3.4977352,3474.2,3473.5,2.4048]
[1718325726734,3.0,3474.2,3473.5,2.4048]
[1718325727043,3.0,3474.2,3473.6,0.29183299]
[1718325728291,3.0,3474.2,3473.6,0.32008621]
[1718325729673,7.45,3474.3,3473.7,2.2807]
[1718325729858,7.45,3474.3,3473.8,2.33266693]
[1718325730057,7.45,3474.3,3473.8,2.54222062]
[1718325730237,7.45,3474.3,3473.9,0.4243782]
[1718325730575,7.45,3474.3,3474.0,0.20948891]
[1718325732005,7.45,3474.3,3474.1,2.2538]
[1718325732300,7.45,3474.3,3474.1,2.31908884]
[1718325732649,7.45,3475.1,3474.1,2.31908884]
[1718325732892,9.75554998,3475.4,3474.2,0.3752534]
[1718325733213,7.45,3475.4,3474.2,0.3752534]
[1718325733496,7.45,3475.4,3474.2,0.3472534]
[1718325733644,4.27666586,3475.3,3474.2,0.3472534]
[1718325733971,3.0,3475.2,3474.2,0.3472534]
[1718325734143,5.4687,3475.3,3474.2,0.3472534]
[1718325734342,8.33559028,3475.3,3474.2,0.3472534]
[1718325736362,5.86689028,3475.3,3474.2,0.3472534]
[1718325736565,3.0,3475.3,3474.3,2.3799]
[1718325741253,6.83796586,3475.3,3474.3,2.3799]
[1718325742065,2.2636,3475.1,3473.7,2.4606]
[1718325742268,1.80796586,3474.9,3473.7,2.4606]
[1718325742486,1.80796586,3475.0,3473.8,0.20882334]
[1718325742795,0.9002694,3474.9,3473.7,2.4606]
[1718325742952,0.846,3474.4,3473.7,2.4606]
[1718325747663,0.846,3474.5,3473.7,2.4606]
[1718325752491,0.846,3474.0,3473.7,2.4606]
[1718325753605,0.846,3474.0,3473.1,2.4049]
[1718325753782,0.846,3474.0,3473.8,0.20916372]
[1718325754109,0.846,3474.0,3473.1,3.83834514]
[1718325754609,0.846,3474.0,3473.2,0.20935812]
[1718325754991,0.846,3474.0,3473.2,1.05535812]
[1718325755594,0.846,3474.2,3473.2,1.05535812]
[1718325755810,0.846,3474.2,3473.3,0.48937033]
[1718325756301,0.846,3474.2,3473.4,0.20929331]
[1718325757425,3.0,3474.4,3473.5,3.1932]
[1718325757645,0.846,3474.5,3473.5,3.25077447]
[1718325757783,0.846,3474.5,3473.6,0.60426378]
[1718325758125,0.846,3474.5,3473.6,0.66183482]
[1718325758340,0.846,3474.5,3473.6,0.20931997]
[1718325758780,0.846,3474.5,3473.6,0.26689101]
[1718325760538,0.846,3474.3,3473.6,0.20931997]
[1718325760926,0.846,3474.3,3473.5,2.3472]
[1718325761099,0.846,3474.3,3473.7,0.20921644]
[1718325761303,0.846,3474.3,3473.6,0.20924883]
[1718325761502,0.846,3474.3,3473.8,0.20918404]
[1718325761699,1.46104056,3474.3,3473.7,0.20921644]
[1718325761916,1.46104056,3474.3,3473.5,2.3472]
[1718325762120,1.46104056,3474.3,3473.8,0.20918404]
[1718325762328,1.46104056,3474.3,3473.5,2.3472]
[1718325763047,1.46104056,3474.3,3473.6,0.20924883]
[1718325763203,0.846,3474.1,3473.6,0.20924883]
[1718325763740,0.846,3473.7,3473.6,0.20924883]
[1718325763931,0.846,3473.7,3472.9,2.4838]
[1718325764126,0.846,3473.7,3473.6,0.20929963]
[1718325764329,1.41127022,3473.7,3472.9,2.4838]
[1718325764530,0.846,3473.7,3472.9,2.4838]
[1718325771519,3.0,3474.0,3472.9,2.4838]
[1718325771731,0.846,3473.9,3473.1,2.4505]
[1718325772308,7.45,3474.2,3473.2,0.05758107]
[1718325772309,3.0,3474.1,3473.2,0.05758107]
[1718325772537,0.846,3474.0,3473.4,2.3453]
[1718325772720,0.846,3474.0,3473.4,2.58558753]
[1718325773024,3.0,3474.1,3473.4,2.58558753]
[1718325773243,3.846,3474.1,3473.4,2.58558753]
[1718325773514,3.846,3474.1,3473.4,2.3453]
[1718325775557,7.45,3474.2,3473.6,2.283]
[1718325775859,0.846,3474.5,3473.6,2.283]
[1718325776150,0.846,3474.3,3473.6,2.283]
[1718325776349,0.846,3474.3,3473.7,0.3129]
[1718325776657,0.846,3474.3,3473.6,2.283]
[1718325777149,3.0,3474.5,3473.6,2.283]
[1718325777353,0.846,3474.3,3473.6,2.283]
[1718325779418,0.846,3474.1,3473.6,2.283]
[1718325781030,3.49770692,3474.5,3473.6,2.283]
[1718325781230,0.846,3474.2,3473.6,2.283]
[1718325781534,0.846,3474.2,3473.3,2.3907]
[1718325781742,2.3542,3474.3,3473.3,2.3907]
[1718325781743,0.846,3474.0,3473.3,2.3907]
[1718325784267,0.846,3473.6,3472.1,2.3747]
[1718325784475,0.846,3473.6,3472.7,2.3747]
[1718325784676,0.846,3473.6,3472.7,3.80814514]
[1718325784844,0.846,3473.6,3472.8,0.20973675]
[1718325786576,4.80831731,3473.8,3472.8,0.20973675]
[1718325786786,0.846,3473.6,3472.9,0.48638819]
[1718325786933,1.80831731,3473.8,3472.9,0.48638819]
[1718325787164,0.846,3473.7,3473.0,0.20982946]
[1718325788364,0.846,3473.7,3472.9,0.48638819]
[1718325788564,1.80831731,3473.8,3472.9,0.48638819]
[1718325788788,0.846,3473.8,3473.1,2.2768]
[1718325789274,0.846,3473.8,3473.2,0.20976465]
[1718325790707,4.80831731,3474.0,3473.2,0.26734094]
[1718325791111,3.0,3474.0,3473.2,0.05757629]
[1718325791316,3.846,3474.1,3473.2,0.05757629]
[1718325791472,3.846,3474.1,3473.2,0.42701925]
[1718325791897,0.846,3473.9,3473.2,0.42701925]
[1718325793008,0.846,3473.9,3473.1,2.2768]
[1718325793222,0.846,3473.8,3473.1,2.2768]
[1718325795032,0.846,3473.8,3473.2,0.05757811]
[1718325796018,0.846,3473.8,3473.1,2.2768]
[1718325796239,0.846,3473.6,3473.1,2.2768]
[1718325796540,0.846,3473.4,3472.7,3.82204514]
[1718325796702,0.846,3473.4,3472.8,0.38220451]
[1718325796900,0.846,3473.4,3472.8,0.59223091]
[1718325797406,0.846,3473.4,3472.8,0.38220451]
[1718325798864,3.0,3473.6,3472.8,0.38220451]
[1718325799019,0.846,3473.6,3472.9,0.50502497]
[1718325799332,3.846,3473.6,3472.9,0.50502497]
[1718325802952,5.65678971,3473.6,3472.7,3.82204514]
[1718325803343,3.846,3473.6,3472.7,3.82204514]
[1718325803539,0.846,3473.0,3472.4,2.2929]
[1718325803839,0.846,3473.0,3472.5,0.21026088]
[1718325804345,0.846,3473.0,3472.4,2.2929]
[1718325804538,0.846,3472.8,3471.9,2.4958]
[1718325804755,0.846,3472.8,3472.0,1.76762514]
[1718325804954,0.846,3472.8,3472.0,1.97804814]
[1718325805863,4.81078971,3473.1,3472.0,1.97804814]
[1718325806057,3.0,3473.1,3472.0,2.82404814]
[1718325806246,0.846,3473.0,3472.1,0.53198481]
[1718325806450,0.846,3473.0,3472.1,1.96542995]
[1718325807438,3.0,3473.1,3472.1,1.96542995]
[1718325807642,3.0,3473.1,3472.2,4.57444514]
[1718325807841,7.45,3473.2,3472.6,0.846]
[1718325808084,3.0,3473.5,3472.7,2.4518]
[1718325808254,8.296,3473.6,3472.8,0.05758427]
[1718325808576,7.45,3473.6,3472.8,0.05758427]
[1718325808780,0.846,3473.5,3472.7,2.4518]
[1718325808946,7.45,3473.6,3472.8,0.05758426]
[1718325809146,8.296,3473.6,3472.8,0.05758426]
[1718325809667,3.0,3473.5,3472.8,0.05758426]
[1718325810383,3.0,3473.5,3472.9,0.28234843]
[1718325810582,3.0,3473.5,3472.8,0.05758426]
[1718325813181,7.45,3473.6,3472.9,2.4975]
[1718325813392,7.45,3473.6,3473.0,0.05758028]
[1718325813578,7.45,3473.6,3473.1,2.4975]
[1718325813778,7.45,3473.6,3473.1,2.70783073]
[1718325814487,7.45,3473.6,3473.1,3.0632138]
[1718325814655,7.45,3474.0,3473.1,3.0632138]
[1718325814857,8.296,3474.0,3473.2,0.01695723]
[1718325815057,7.45,3474.0,3473.2,0.03736317]
[1718325815263,7.45,3474.0,3473.3,0.21023542]
[1718325815587,8.296,3474.0,3473.3,0.21023542]